[Event "Early-Titled-Tuesday-Blitz-August-29-2023"]
[Site "Chess.com"]
[Date "2023.08.29"]
[Round "3"]
[White "IngOscarArdila"]
[Black "koncheto"]
[Result "0-1"]
[WhiteElo "2320"]
[BlackElo "2518"]
[TimeControl "180+1"]
[EndTime "8:30:09 PDT"]
[Termination "koncheto won on time"]

1. d4 {[%clk 0:02:59.3]} 1... Nf6 {[%clk 0:03:00.1]} 2. c4 {[%clk 0:02:59.5]}
2... e6 {[%clk 0:03:01]} 3. Nc3 {[%clk 0:02:59.4]} 3... c5 {[%clk 0:03:01.9]} 4.
Nf3 {[%clk 0:02:58.3]} 4... cxd4 {[%clk 0:03:02.2]} 5. Nxd4 {[%clk 0:02:57.4]}
5... Nc6 {[%clk 0:03:03.1]} 6. Ndb5 {[%clk 0:02:56.7]} 6... a6 {[%clk 0:02:55]}
7. Nd6+ {[%clk 0:02:55.7]} 7... Bxd6 {[%clk 0:02:55.5]} 8. Qxd6 {[%clk
0:02:56.4]} 8... Qe7 {[%clk 0:02:52.8]} 9. Qg3 {[%clk 0:02:55.7]} 9... O-O
{[%clk 0:02:50.8]} 10. Bg5 {[%clk 0:02:47.4]} 10... Nd4 {[%clk 0:02:31.3]} 11.
Qd3 {[%clk 0:02:43]} 11... Nc6 {[%clk 0:01:58.5]} 12. O-O-O {[%clk 0:02:34.9]}
12... b6 {[%clk 0:01:56.5]} 13. Ne4 {[%clk 0:02:32]} 13... Bb7 {[%clk
0:01:52.6]} 14. Nxf6+ {[%clk 0:02:25.5]} 14... gxf6 {[%clk 0:01:52.6]} 15. Bh6
{[%clk 0:02:25.9]} 15... Ne5 {[%clk 0:01:40.8]} 16. Qg3+ {[%clk 0:02:12.9]}
16... Ng6 {[%clk 0:01:40.9]} 17. h4 {[%clk 0:02:08.8]} 17... Rfc8 {[%clk
0:01:15.6]} 18. e3 {[%clk 0:02:08.8]} 18... b5 {[%clk 0:00:56.4]} 19. h5 {[%clk
0:02:08.1]} 19... bxc4 {[%clk 0:00:56.6]} 20. hxg6 {[%clk 0:02:07.8]} 20... fxg6
{[%clk 0:00:57.5]} 21. Qd6 {[%clk 0:02:05.1]} 21... Qxd6 {[%clk 0:00:55.5]} 22.
Rxd6 {[%clk 0:02:05.1]} 22... Rc7 {[%clk 0:00:44.1]} 23. Rh4 {[%clk 0:02:03.3]}
23... Kf7 {[%clk 0:00:28.1]} 24. Rhd4 {[%clk 0:01:55]} 24... Ke7 {[%clk
0:00:22.7]} 25. Rb6 {[%clk 0:01:45.4]} 25... Rac8 {[%clk 0:00:15.3]} 26. f3
{[%clk 0:01:21.8]} 26... a5 {[%clk 0:00:11.1]} 27. e4 {[%clk 0:01:20.4]} 27...
e5 {[%clk 0:00:08.1]} 28. Rd1 {[%clk 0:01:17.8]} 28... g5 {[%clk 0:00:07.2]} 29.
Rdd6 {[%clk 0:01:07.4]} 29... Bc6 {[%clk 0:00:07.3]} 30. Rd1 {[%clk 0:01:04.9]}
30... Kf7 {[%clk 0:00:07.1]} 31. Bxc4+ {[%clk 0:01:00.2]} 31... Kg6 {[%clk
0:00:07]} 32. Bxg5 {[%clk 0:00:56.8]} 32... Kxg5 {[%clk 0:00:07.4]} 33. Kd2
{[%clk 0:00:55.3]} 33... Bxe4 {[%clk 0:00:07.6]} 34. fxe4 {[%clk 0:00:55.1]}
34... Rxc4 {[%clk 0:00:07.9]} 35. Ke3 {[%clk 0:00:52.5]} 35... R8c7 {[%clk
0:00:04.2]} 36. Rd2 {[%clk 0:00:49.9]} 36... Rc1 {[%clk 0:00:04]} 37. Rbd6
{[%clk 0:00:49.3]} 37... Re1+ {[%clk 0:00:04.3]} 38. Kf3 {[%clk 0:00:48.9]}
38... Rf1+ {[%clk 0:00:04.2]} 39. Ke2 {[%clk 0:00:49]} 39... Rf4 {[%clk
0:00:04.3]} 40. Ke3 {[%clk 0:00:47.9]} 40... Rc4 {[%clk 0:00:04.5]} 41. Rxd7
{[%clk 0:00:46.1]} 41... Rcxe4+ {[%clk 0:00:04.3]} 42. Kd3 {[%clk 0:00:46.5]}
42... Ra4 {[%clk 0:00:05]} 43. a3 {[%clk 0:00:44.4]} 43... h5 {[%clk 0:00:03.7]}
44. Kc3 {[%clk 0:00:42.5]} 44... Rac4+ {[%clk 0:00:03.9]} 45. Kb3 {[%clk
0:00:42.3]} 45... a4+ {[%clk 0:00:04.8]} 46. Ka2 {[%clk 0:00:41.8]} 46... h4
{[%clk 0:00:04.7]} 47. Rg7+ {[%clk 0:00:41.1]} 47... Kf5 {[%clk 0:00:05.2]} 48.
Rh7 {[%clk 0:00:41.1]} 48... Rg4 {[%clk 0:00:05.4]} 49. Rf2+ {[%clk 0:00:39.8]}
49... Rcf4 {[%clk 0:00:05.5]} 50. Rd2 {[%clk 0:00:39.9]} 50... e4 {[%clk
0:00:06]} 51. Rd5+ {[%clk 0:00:38.3]} 51... Kg6 {[%clk 0:00:06.1]} 52. Rdd7
{[%clk 0:00:34.9]} 52... e3 {[%clk 0:00:05.9]} 53. Rhe7 {[%clk 0:00:34.1]} 53...
Re4 {[%clk 0:00:05.8]} 54. Rg7+ {[%clk 0:00:32]} 54... Kf5 {[%clk 0:00:06.3]}
55. Rd5+ {[%clk 0:00:25.2]} 55... Re5 {[%clk 0:00:06.5]} 56. Rxe5+ {[%clk
0:00:19.3]} 56... fxe5 {[%clk 0:00:07.4]} 57. Rf7+ {[%clk 0:00:17.3]} 57... Ke4
{[%clk 0:00:07.9]} 58. Rf1 {[%clk 0:00:16.8]} 58... e2 {[%clk 0:00:08.5]} 59.
Re1 {[%clk 0:00:17.2]} 59... Ke3 {[%clk 0:00:09.4]} 60. b3 {[%clk 0:00:17.6]}
60... axb3+ {[%clk 0:00:08.6]} 61. Kxb3 {[%clk 0:00:18.5]} 61... Kd2 {[%clk
0:00:09.5]} 62. a4 {[%clk 0:00:19.1]} 62... Kxe1 {[%clk 0:00:09.6]} 0-1

[Event "Early-Titled-Tuesday-Blitz-August-29-2023"]
[Site "Chess.com"]
[Date "2023.08.29"]
[Round "3"]
[White "KejJaj"]
[Black "M1711"]
[Result "0-1"]
[WhiteElo "2170"]
[BlackElo "2537"]
[TimeControl "180+1"]
[EndTime "8:30:10 PDT"]
[Termination "M1711 won by resignation"]

1. d4 {[%clk 0:03:00.9]} 1... Nf6 {[%clk 0:03:00]} 2. Bf4 {[%clk 0:03:01.5]}
2... b6 {[%clk 0:02:54.3]} 3. e3 {[%clk 0:02:58.3]} 3... Bb7 {[%clk 0:02:54.1]}
4. Nf3 {[%clk 0:02:58.2]} 4... e6 {[%clk 0:02:53.9]} 5. Bd3 {[%clk 0:02:56.4]}
5... c5 {[%clk 0:02:53.8]} 6. c3 {[%clk 0:02:55.7]} 6... d6 {[%clk 0:02:53.2]}
7. Nbd2 {[%clk 0:02:55.4]} 7... Nbd7 {[%clk 0:02:52.8]} 8. h3 {[%clk 0:02:52.1]}
8... Be7 {[%clk 0:02:52.5]} 9. O-O {[%clk 0:02:51.5]} 9... O-O {[%clk
0:02:47.5]} 10. Nc4 {[%clk 0:02:34.1]} 10... Qc7 {[%clk 0:02:44.9]} 11. b4
{[%clk 0:02:22.4]} 11... Bd5 {[%clk 0:02:29.7]} 12. Qe2 {[%clk 0:01:54.2]} 12...
Rac8 {[%clk 0:02:17.6]} 13. bxc5 {[%clk 0:01:51.4]} 13... bxc5 {[%clk
0:02:16.8]} 14. Nfd2 {[%clk 0:01:33.9]} 14... e5 {[%clk 0:02:14.6]} 15. dxe5
{[%clk 0:01:24.1]} 15... dxe5 {[%clk 0:02:14.8]} 16. Bh2 {[%clk 0:01:22.2]}
16... Rb8 {[%clk 0:01:43.8]} 17. Nf3 {[%clk 0:01:20.2]} 17... Bxc4 {[%clk
0:01:29.6]} 18. Bxc4 {[%clk 0:01:21.1]} 18... Bd6 {[%clk 0:01:22.1]} 19. e4
{[%clk 0:00:56]} 19... Nb6 {[%clk 0:01:17.4]} 20. Rab1 {[%clk 0:00:45.9]} 20...
Qc6 {[%clk 0:01:02.3]} 21. Bd3 {[%clk 0:00:38.7]} 21... c4 {[%clk 0:00:59.3]}
22. Bc2 {[%clk 0:00:39.4]} 22... Rfe8 {[%clk 0:00:53.6]} 23. Rfd1 {[%clk
0:00:39.2]} 23... Bc7 {[%clk 0:00:49.8]} 24. Bg3 {[%clk 0:00:35.8]} 24... Nh5
{[%clk 0:00:40.6]} 25. Bh2 {[%clk 0:00:34.2]} 25... Nf4 {[%clk 0:00:37]} 26. Qe3
{[%clk 0:00:32.8]} 26... Na4 {[%clk 0:00:34]} 27. Rxb8 {[%clk 0:00:30.8]} 27...
Rxb8 {[%clk 0:00:31.6]} 28. Rb1 {[%clk 0:00:31.4]} 28... Rxb1+ {[%clk
0:00:29.7]} 29. Bxb1 {[%clk 0:00:32.3]} 29... Nxc3 {[%clk 0:00:22.9]} 30. Bxf4
{[%clk 0:00:27.5]} 30... Nxb1 {[%clk 0:00:22.5]} 31. Qc1 {[%clk 0:00:26]} 31...
Qxe4 {[%clk 0:00:17.3]} 32. Be3 {[%clk 0:00:22.5]} 32... c3 {[%clk 0:00:15]} 33.
Ne1 {[%clk 0:00:20.2]} 33... Bb6 {[%clk 0:00:12.3]} 34. Nc2 {[%clk 0:00:19.6]}
34... Bxe3 {[%clk 0:00:11.1]} 35. Nxe3 {[%clk 0:00:20.2]} 35... Qd3 {[%clk
0:00:09]} 36. Kh2 {[%clk 0:00:19.4]} 36... h6 {[%clk 0:00:07.2]} 37. Kg1 {[%clk
0:00:19]} 37... Nd2 {[%clk 0:00:07.4]} 38. Kh2 {[%clk 0:00:18.8]} 38... Ne4
{[%clk 0:00:07.4]} 39. Kg1 {[%clk 0:00:18.8]} 39... Qd2 {[%clk 0:00:06.4]} 40.
Qb1 {[%clk 0:00:16.1]} 40... Qxf2+ {[%clk 0:00:06.2]} 41. Kh1 {[%clk 0:00:15.6]}
41... Qxe3 {[%clk 0:00:05.8]} 42. Qb8+ {[%clk 0:00:13.8]} 42... Kh7 {[%clk
0:00:06.2]} 43. Qb3 {[%clk 0:00:13]} 43... Nf2+ {[%clk 0:00:03.4]} 44. Kh2
{[%clk 0:00:12.5]} 44... Qf4+ {[%clk 0:00:03.3]} 45. Kg1 {[%clk 0:00:10.8]}
45... Ne4 {[%clk 0:00:03.6]} 46. Qc2 {[%clk 0:00:09.6]} 46... Qe3+ {[%clk
0:00:03.5]} 47. Kh2 {[%clk 0:00:08.5]} 47... g6 {[%clk 0:00:04.2]} 48. Kh1
{[%clk 0:00:08.1]} 48... h5 {[%clk 0:00:03.8]} 49. Kh2 {[%clk 0:00:08.3]} 49...
Qf4+ {[%clk 0:00:03.3]} 50. Kg1 {[%clk 0:00:07.5]} 50... h4 {[%clk 0:00:03.5]}
51. Qb1 {[%clk 0:00:06.4]} 51... Kg7 {[%clk 0:00:03.2]} 52. Kh1 {[%clk
0:00:06.6]} 52... Ng3+ {[%clk 0:00:03.2]} 53. Kg1 {[%clk 0:00:06]} 53... Qd2
{[%clk 0:00:03.2]} 54. Kh2 {[%clk 0:00:03.8]} 54... c2 {[%clk 0:00:02.7]} 55.
Qb2 {[%clk 0:00:03.7]} 55... Qf4 {[%clk 0:00:01.9]} 56. Qxc2 {[%clk 0:00:02]}
56... Nf5+ {[%clk 0:00:02.5]} 57. Kh1 {[%clk 0:00:01.9]} 57... Qf1+ {[%clk
0:00:02.6]} 58. Kh2 {[%clk 0:00:02.2]} 58... Ne3 {[%clk 0:00:03.2]} 59. Qe4
{[%clk 0:00:01.3]} 59... Qf4+ {[%clk 0:00:02.8]} 60. Qxf4 {[%clk 0:00:01.3]}
60... exf4 {[%clk 0:00:03.7]} 61. Kg1 {[%clk 0:00:01.9]} 61... Kf6 {[%clk
0:00:04.2]} 62. Kf2 {[%clk 0:00:02.8]} 62... Ke5 {[%clk 0:00:05]} 63. Kf3 {[%clk
0:00:03.5]} 63... f5 {[%clk 0:00:05.7]} 64. Ke2 {[%clk 0:00:04.4]} 64... g5
{[%clk 0:00:06.1]} 65. Kf2 {[%clk 0:00:05.3]} 65... g4 {[%clk 0:00:06.5]} 66.
Ke2 {[%clk 0:00:06.2]} 66... Ke4 {[%clk 0:00:06.9]} 67. hxg4 {[%clk 0:00:07]}
67... fxg4 {[%clk 0:00:07.8]} 68. Kf2 {[%clk 0:00:07.1]} 68... Nc4 {[%clk
0:00:07.9]} 69. Ke2 {[%clk 0:00:07.3]} 69... a5 {[%clk 0:00:08.4]} 70. Kd1
{[%clk 0:00:07]} 70... a4 {[%clk 0:00:08.6]} 71. Kc2 {[%clk 0:00:07.1]} 71... a3
{[%clk 0:00:09.1]} 72. Kc3 {[%clk 0:00:07.5]} 72... Kd5 {[%clk 0:00:09.3]} 0-1

[Event "Early-Titled-Tuesday-Blitz-August-29-2023"]
[Site "Chess.com"]
[Date "2023.08.29"]
[Round "3"]
[White "DanilNajdin"]
[Black "Irina_Barchuk"]
[Result "1-0"]
[WhiteElo "2548"]
[BlackElo "2240"]
[TimeControl "180+1"]
[EndTime "8:30:15 PDT"]
[Termination "DanilNajdin won by resignation"]

1. d4 {[%clk 0:03:00.9]} 1... d5 {[%clk 0:02:59.4]} 2. c4 {[%clk 0:02:59.6]}
2... e6 {[%clk 0:02:57.2]} 3. Nc3 {[%clk 0:02:58.8]} 3... Nf6 {[%clk 0:02:56.6]}
4. cxd5 {[%clk 0:02:56.8]} 4... exd5 {[%clk 0:02:56.1]} 5. Bg5 {[%clk
0:02:56.7]} 5... Bd6 {[%clk 0:02:50.2]} 6. Bxf6 {[%clk 0:02:39.4]} 6... Qxf6
{[%clk 0:02:49.8]} 7. Nxd5 {[%clk 0:02:37.8]} 7... Qf5 {[%clk 0:02:34]} 8. Nc3
{[%clk 0:02:35.5]} 8... Bb4 {[%clk 0:02:29.6]} 9. e3 {[%clk 0:02:30.6]} 9... O-O
{[%clk 0:02:29.2]} 10. Bd3 {[%clk 0:02:24.1]} 10... Qg5 {[%clk 0:02:25.4]} 11.
Nf3 {[%clk 0:02:18.3]} 11... Qxg2 {[%clk 0:02:22.9]} 12. Bxh7+ {[%clk 0:01:48]}
12... Kh8 {[%clk 0:02:22.6]} 13. Rg1 {[%clk 0:01:44.2]} 13... Qh3 {[%clk
0:02:22.4]} 14. Bd3 {[%clk 0:01:19.4]} 14... Bxc3+ {[%clk 0:02:21.1]} 15. bxc3
{[%clk 0:01:18.9]} 15... Nc6 {[%clk 0:02:16.8]} 16. Qe2 {[%clk 0:01:02.8]} 16...
Bg4 {[%clk 0:02:11]} 17. Rg3 {[%clk 0:01:01.2]} 17... Qh5 {[%clk 0:02:10.9]} 18.
h3 {[%clk 0:00:50]} 18... Bxf3 {[%clk 0:02:10.6]} 19. Qxf3 {[%clk 0:00:45.1]}
19... Qxf3 {[%clk 0:02:09]} 20. Rxf3 {[%clk 0:00:46]} 20... Rad8 {[%clk
0:02:08.4]} 21. O-O-O {[%clk 0:00:46]} 21... Rd6 {[%clk 0:02:07]} 22. Be4 {[%clk
0:00:43.7]} 22... Na5 {[%clk 0:02:05.7]} 23. Rf5 {[%clk 0:00:41]} 23... b6
{[%clk 0:02:04.8]} 24. Bd3 {[%clk 0:00:39.2]} 24... g6 {[%clk 0:02:03.7]} 25.
Rg5 {[%clk 0:00:38.8]} 25... Kg7 {[%clk 0:01:59.8]} 26. h4 {[%clk 0:00:36]}
26... Kf6 {[%clk 0:01:57.6]} 27. Rdg1 {[%clk 0:00:33.8]} 27... Rh8 {[%clk
0:01:57.4]} 28. R1g4 {[%clk 0:00:33.2]} 28... Nb7 {[%clk 0:01:44.5]} 29. Kc2
{[%clk 0:00:32.7]} 29... Nd8 {[%clk 0:01:44.4]} 30. Rf4+ {[%clk 0:00:30.6]}
30... Ke7 {[%clk 0:01:42.9]} 31. Re5+ {[%clk 0:00:24.9]} 31... Re6 {[%clk
0:01:36.3]} 32. Rxe6+ {[%clk 0:00:21.9]} 32... Nxe6 {[%clk 0:01:37.2]} 33. Rg4
{[%clk 0:00:22.2]} 33... Rh6 {[%clk 0:01:32.3]} 34. c4 {[%clk 0:00:19.4]} 34...
f5 {[%clk 0:01:30.9]} 35. Rg1 {[%clk 0:00:16.9]} 35... Kf6 {[%clk 0:01:30.9]}
36. Rh1 {[%clk 0:00:13.3]} 36... Ng7 {[%clk 0:01:24.9]} 37. f4 {[%clk
0:00:12.9]} 37... Nh5 {[%clk 0:01:21.6]} 38. Rh3 {[%clk 0:00:12.8]} 38... Kf7
{[%clk 0:01:20.3]} 39. Be2 {[%clk 0:00:12.9]} 39... Nf6 {[%clk 0:01:20.5]} 40.
Bf3 {[%clk 0:00:12.5]} 40... Ke6 {[%clk 0:01:15.2]} 41. Kd3 {[%clk 0:00:12.7]}
41... Kf7 {[%clk 0:01:15.2]} 42. Rh1 {[%clk 0:00:12.8]} 42... Rh8 {[%clk
0:01:12.8]} 43. a4 {[%clk 0:00:12.6]} 43... a5 {[%clk 0:01:12.3]} 44. d5 {[%clk
0:00:09.7]} 44... Ke7 {[%clk 0:01:09.4]} 45. Kd4 {[%clk 0:00:10.1]} 45... Kd6
{[%clk 0:01:09.4]} 46. Rh2 {[%clk 0:00:09.7]} 46... Rh6 {[%clk 0:01:06.6]} 47.
Rh1 {[%clk 0:00:09.7]} 47... Nd7 {[%clk 0:01:05.9]} 48. Rg1 {[%clk 0:00:08.9]}
48... Nc5 {[%clk 0:01:04.1]} 49. Bd1 {[%clk 0:00:09.2]} 49... c6 {[%clk
0:00:56]} 50. Bc2 {[%clk 0:00:08.4]} 50... cxd5 {[%clk 0:00:50]} 51. cxd5 {[%clk
0:00:09.3]} 51... Nd7 {[%clk 0:00:48.1]} 52. h5 {[%clk 0:00:09.7]} 52... gxh5
{[%clk 0:00:44.9]} 53. Bxf5 {[%clk 0:00:09.4]} 53... Nf6 {[%clk 0:00:43.8]} 54.
e4 {[%clk 0:00:09.1]} 54... Ke7 {[%clk 0:00:40.1]} 55. e5 {[%clk 0:00:09.2]}
55... Ne8 {[%clk 0:00:39.2]} 56. d6+ {[%clk 0:00:08.3]} 56... Kf7 {[%clk
0:00:38.9]} 57. Kd5 {[%clk 0:00:07.7]} 57... h4 {[%clk 0:00:37.5]} 58. Ke4
{[%clk 0:00:02.6]} 58... h3 {[%clk 0:00:32]} 59. d7 {[%clk 0:00:03.1]} 59... h2
{[%clk 0:00:23.8]} 60. Rh1 {[%clk 0:00:03.5]} 60... Nd6+ {[%clk 0:00:15.6]} 61.
exd6 {[%clk 0:00:04]} 61... Rxd6 {[%clk 0:00:16.5]} 62. Rxh2 {[%clk 0:00:03.9]}
62... Rd1 {[%clk 0:00:14.4]} 63. Rh7+ {[%clk 0:00:03.8]} 63... Kg8 {[%clk
0:00:13.9]} 64. Re7 {[%clk 0:00:03.7]} 64... Kf8 {[%clk 0:00:14.1]} 65. Re8+
{[%clk 0:00:03.8]} 65... Kf7 {[%clk 0:00:14.4]} 66. d8=Q {[%clk 0:00:04.3]}
66... Rxd8 {[%clk 0:00:13.9]} 67. Rxd8 {[%clk 0:00:05.2]} 1-0

[Event "Early-Titled-Tuesday-Blitz-August-29-2023"]
[Site "Chess.com"]
[Date "2023.08.29"]
[Round "3"]
[White "Aleksandar-Topalov"]
[Black "ExchangeAB"]
[Result "1-0"]
[WhiteElo "2336"]
[BlackElo "2477"]
[TimeControl "180+1"]
[EndTime "8:30:15 PDT"]
[Termination "Aleksandar-Topalov won by resignation"]

1. b3 {[%clk 0:03:00.9]} 1... d5 {[%clk 0:02:59.4]} 2. Bb2 {[%clk 0:03:00.8]}
2... Nf6 {[%clk 0:03:00.1]} 3. Nf3 {[%clk 0:03:00.8]} 3... Bf5 {[%clk
0:03:00.6]} 4. d3 {[%clk 0:02:59.6]} 4... e6 {[%clk 0:03:00.9]} 5. g3 {[%clk
0:03:00]} 5... h6 {[%clk 0:03:01.2]} 6. Bg2 {[%clk 0:03:00.3]} 6... c6 {[%clk
0:03:01.7]} 7. O-O {[%clk 0:03:00.4]} 7... Nbd7 {[%clk 0:03:02.3]} 8. Nbd2
{[%clk 0:03:00.4]} 8... Bh7 {[%clk 0:03:03]} 9. c4 {[%clk 0:02:59.5]} 9... Be7
{[%clk 0:03:03.1]} 10. a3 {[%clk 0:02:59.8]} 10... O-O {[%clk 0:03:03.4]} 11.
Ra2 {[%clk 0:03:00.1]} 11... a5 {[%clk 0:03:03.4]} 12. Qa1 {[%clk 0:03:00]}
12... Ne8 {[%clk 0:03:01.4]} 13. Rc1 {[%clk 0:02:57.7]} 13... Bf6 {[%clk
0:03:01.3]} 14. Ne5 {[%clk 0:02:53.3]} 14... Nxe5 {[%clk 0:03:00.8]} 15. Bxe5
{[%clk 0:02:52.8]} 15... Bxe5 {[%clk 0:03:01.1]} 16. Qxe5 {[%clk 0:02:52.7]}
16... Qd6 {[%clk 0:03:01.5]} 17. Qa1 {[%clk 0:02:26.7]} 17... Nf6 {[%clk
0:02:57.2]} 18. Rac2 {[%clk 0:02:08.5]} 18... Rfd8 {[%clk 0:02:46.7]} 19. Qb2
{[%clk 0:02:06]} 19... Rac8 {[%clk 0:02:30.9]} 20. b4 {[%clk 0:02:05.5]} 20...
axb4 {[%clk 0:02:29]} 21. axb4 {[%clk 0:02:05.8]} 21... Ra8 {[%clk 0:02:28.9]}
22. b5 {[%clk 0:02:00.3]} 22... Rdb8 {[%clk 0:02:26.7]} 23. Nf3 {[%clk
0:01:46.7]} 23... Bf5 {[%clk 0:02:02.9]} 24. h3 {[%clk 0:01:43.2]} 24... Qa3
{[%clk 0:01:48.6]} 25. Nd4 {[%clk 0:01:33.2]} 25... Qxb2 {[%clk 0:01:47.7]} 26.
Rxb2 {[%clk 0:01:33.3]} 26... Rc8 {[%clk 0:01:12.6]} 27. Nxf5 {[%clk 0:01:32.2]}
27... exf5 {[%clk 0:01:12.5]} 28. bxc6 {[%clk 0:01:13.4]} 28... bxc6 {[%clk
0:01:12.2]} 29. Bf3 {[%clk 0:00:56.9]} 29... Rab8 {[%clk 0:01:09.3]} 30. Rxb8
{[%clk 0:00:52.3]} 30... Rxb8 {[%clk 0:01:10.2]} 31. cxd5 {[%clk 0:00:51.9]}
31... cxd5 {[%clk 0:01:11.1]} 32. Rc5 {[%clk 0:00:49]} 32... Rd8 {[%clk
0:01:10.4]} 33. Kg2 {[%clk 0:00:44]} 33... g6 {[%clk 0:01:10.1]} 34. Ra5 {[%clk
0:00:38.9]} 34... Kg7 {[%clk 0:01:10.1]} 35. Ra7 {[%clk 0:00:37.1]} 35... Rd6
{[%clk 0:01:08.4]} 36. Ra5 {[%clk 0:00:35.3]} 36... Rd7 {[%clk 0:01:08.3]} 37.
Ra6 {[%clk 0:00:33.4]} 37... Rd8 {[%clk 0:01:08]} 38. Ra5 {[%clk 0:00:33.4]}
38... Rd7 {[%clk 0:01:08]} 39. Ra6 {[%clk 0:00:31]} 39... g5 {[%clk 0:01:07.2]}
40. g4 {[%clk 0:00:29.1]} 40... f4 {[%clk 0:01:04.1]} 41. Ra5 {[%clk 0:00:27.1]}
41... Kf8 {[%clk 0:00:50.3]} 42. Ra8+ {[%clk 0:00:25.8]} 42... Kg7 {[%clk
0:00:50.6]} 43. Ra6 {[%clk 0:00:25.4]} 43... Rd8 {[%clk 0:00:51]} 44. Ra7 {[%clk
0:00:23.8]} 44... Kf8 {[%clk 0:00:50.5]} 45. Ra6 {[%clk 0:00:23.7]} 45... Ke7
{[%clk 0:00:50.6]} 46. Ra7+ {[%clk 0:00:23.9]} 46... Rd7 {[%clk 0:00:50.2]} 47.
Ra5 {[%clk 0:00:22.4]} 47... Ke6 {[%clk 0:00:48.8]} 48. Ra8 {[%clk 0:00:22.5]}
48... Ke7 {[%clk 0:00:25.2]} 49. Rh8 {[%clk 0:00:22]} 49... Rd8 {[%clk
0:00:19.9]} 50. Rxh6 {[%clk 0:00:19.1]} 50... Rg8 {[%clk 0:00:19.3]} 51. h4
{[%clk 0:00:15.3]} 51... gxh4 {[%clk 0:00:19.1]} 52. Kh3 {[%clk 0:00:15.9]}
52... Rg6 {[%clk 0:00:16.5]} 53. Rxg6 {[%clk 0:00:13.7]} 53... fxg6 {[%clk
0:00:17.4]} 54. Kxh4 {[%clk 0:00:14.2]} 54... d4 {[%clk 0:00:14.5]} 55. Kg5
{[%clk 0:00:13.1]} 55... Kf7 {[%clk 0:00:15]} 56. Kxf4 {[%clk 0:00:13.3]} 56...
Ke6 {[%clk 0:00:15.4]} 57. g5 {[%clk 0:00:13.7]} 57... Nd7 {[%clk 0:00:15]} 58.
Ke4 {[%clk 0:00:13.6]} 58... Ne5 {[%clk 0:00:11.1]} 59. Kxd4 {[%clk 0:00:12.5]}
59... Kd6 {[%clk 0:00:11.6]} 60. Ke4 {[%clk 0:00:12.2]} 60... Nf7 {[%clk
0:00:11.5]} 61. Kf4 {[%clk 0:00:11.8]} 61... Ke6 {[%clk 0:00:12.1]} 62. d4
{[%clk 0:00:11.5]} 62... Kd6 {[%clk 0:00:12.6]} 63. e4 {[%clk 0:00:11.8]} 63...
Ke6 {[%clk 0:00:13.1]} 64. e5 {[%clk 0:00:12.3]} 64... Nd8 {[%clk 0:00:12.5]}
65. Be4 {[%clk 0:00:12.7]} 65... Ke7 {[%clk 0:00:13.4]} 66. Bxg6 {[%clk
0:00:12.7]} 66... Ne6+ {[%clk 0:00:14.1]} 67. Ke3 {[%clk 0:00:12]} 67... Nxg5
{[%clk 0:00:14.4]} 68. Be4 {[%clk 0:00:12.4]} 68... Ne6 {[%clk 0:00:14.6]} 69.
f4 {[%clk 0:00:12.3]} 69... Nd8 {[%clk 0:00:14.6]} 70. f5 {[%clk 0:00:12.8]}
70... Nf7 {[%clk 0:00:15.1]} 71. f6+ {[%clk 0:00:13.3]} 71... Ke6 {[%clk
0:00:14]} 72. Bd3 {[%clk 0:00:13.6]} 72... Ng5 {[%clk 0:00:13.5]} 73. Bc4+
{[%clk 0:00:13.3]} 73... Kd7 {[%clk 0:00:14.1]} 74. Kf4 {[%clk 0:00:13.5]} 74...
Nh7 {[%clk 0:00:13.6]} 75. e6+ {[%clk 0:00:12.3]} 75... Kd6 {[%clk 0:00:13.4]}
76. Kf5 {[%clk 0:00:12.4]} 1-0